Workbook

Sheet Index
A2: Year | B2: JAN | C2: FEB | D2: MAR | E2: APR | F2: MAY | G2: JUN | H2: JUL | I2: AUG | J2: SEP | K2: OCT | L2: NOV | M2: DEC
A3: 1949 | B3: -0.2 | C3: -0.1 | D3: 0.1 | E3: 0 | F3: -0.2 | G3: -0.3 | H3: -0.5 | I3: -0.8 | J3: -0.9 | K3: -1 | L3: -1.2 | M3: -1.2
A4: 1950 | B4: -1.2 | C4: -1 | D4: -0.9 | E4: -0.8 | F4: -0.6 | G4: -0.6 | H4: -0.5 | I4: -0.4 | J4: -0.4 | K4: -0.4 | L4: -0.4 | M4: -0.3
A5: 1951 | B5: -0.2 | C5: -0.1 | D5: 0.1 | E5: 0.2 | F5: 0.5 | G5: 0.7 | H5: 0.8 | I5: 1 | J5: 1.1 | K5: 0.9 | L5: 0.9 | M5: 0.8
A6: 1952 | B6: 0.6 | C6: 0.5 | D6: 0.4 | E6: 0.1 | F6: -0.1 | G6: -0.2 | H6: -0.2 | I6: -0.2 | J6: -0.2 | K6: -0.1 | L6: 0 | M6: 0.1
A7: 1953 | B7: 0.1 | C7: 0.3 | D7: 0.4 | E7: 0.5 | F7: 0.6 | G7: 0.6 | H7: 0.6 | I7: 0.6 | J7: 0.5 | K7: 0.5 | L7: 0.5 | M7: 0.4
A8: 1954 | B8: 0.3 | C8: -0.1 | D8: -0.3 | E8: -0.6 | F8: -0.7 | G8: -0.9 | H8: -0.8 | I8: -0.8 | J8: -0.7 | K8: -0.8 | L8: -0.7 | M8: -0.6
A9: 1955 | B9: -0.6 | C9: -0.6 | D9: -0.6 | E9: -0.7 | F9: -0.8 | G9: -0.8 | H9: -0.9 | I9: -0.9 | J9: -1.1 | K9: -1.2 | L9: -1.2 | M9: -1
A10: 1956 | B10: -0.7 | C10: -0.5 | D10: -0.3 | E10: -0.2 | F10: -0.2 | G10: -0.2 | H10: -0.3 | I10: -0.3 | J10: -0.4 | K10: -0.5 | L10: -0.5 | M10: -0.5
A11: 1957 | B11: -0.3 | C11: 0 | D11: 0.3 | E11: 0.6 | F11: 0.9 | G11: 1.1 | H11: 1.2 | I11: 1.2 | J11: 1.3 | K11: 1.3 | L11: 1.3 | M11: 1.4
A12: 1958 | B12: 1.3 | C12: 1.1 | D12: 0.8 | E12: 0.6 | F12: 0.4 | G12: 0.3 | H12: 0.2 | I12: 0.2 | J12: 0.2 | K12: 0.2 | L12: 0.1 | M12: 0.1
A13: 1959 | B13: 0.1 | C13: 0.1 | D13: 0.1 | E13: 0.1 | F13: 0 | G13: -0.1 | H13: -0.2 | I13: -0.1 | J13: -0.1 | K13: 0 | L13: 0.1 | M13: 0.1
A14: 1960 | B14: 0.1 | C14: 0 | D14: 0 | E14: 0 | F14: 0 | G14: 0 | H14: 0.1 | I14: 0 | J14: -0.1 | K14: -0.1 | L14: -0.2 | M14: -0.2
A15: 1961 | B15: -0.1 | C15: 0 | D15: 0.1 | E15: 0.1 | F15: 0 | G15: -0.1 | H15: -0.3 | I15: -0.4 | J15: -0.5 | K15: -0.4 | L15: -0.3 | M15: -0.2
A16: 1962 | B16: -0.1 | C16: -0.1 | D16: -0.3 | E16: -0.3 | F16: -0.3 | G16: -0.3 | H16: -0.3 | I16: -0.2 | J16: -0.2 | K16: -0.3 | L16: -0.4 | M16: -0.4
A17: 1963 | B17: -0.3 | C17: -0.3 | D17: 0 | E17: 0.1 | F17: 0.4 | G17: 0.6 | H17: 0.8 | I17: 0.9 | J17: 1 | K17: 1.1 | L17: 1 | M17: 0.9
A18: 1964 | B18: 0.6 | C18: 0.3 | D18: -0.2 | E18: -0.6 | F18: -0.8 | G18: -1 | H18: -0.9 | I18: -0.8 | J18: -0.7 | K18: -0.8 | L18: -0.7 | M18: -0.6
A19: 1965 | B19: -0.5 | C19: -0.3 | D19: 0.1 | E19: 0.4 | F19: 0.7 | G19: 0.9 | H19: 1.2 | I19: 1.3 | J19: 1.4 | K19: 1.5 | L19: 1.5 | M19: 1.4
A20: 1966 | B20: 1.1 | C20: 0.8 | D20: 0.3 | E20: 0 | F20: -0.1 | G20: -0.1 | H20: -0.2 | I20: -0.1 | J20: -0.1 | K20: -0.3 | L20: -0.3 | M20: -0.3
A21: 1967 | B21: -0.4 | C21: -0.5 | D21: -0.4 | E21: -0.3 | F21: -0.3 | G21: -0.3 | H21: -0.3 | I21: -0.4 | J21: -0.6 | K21: -0.7 | L21: -0.8 | M21: -0.9
A22: 1968 | B22: -0.9 | C22: -0.9 | D22: -0.8 | E22: -0.6 | F22: -0.3 | G22: 0 | H22: 0.2 | I22: 0.4 | J22: 0.5 | K22: 0.6 | L22: 0.6 | M22: 0.6
A23: 1969 | B23: 0.7 | C23: 0.7 | D23: 0.7 | E23: 0.7 | F23: 0.7 | G23: 0.7 | H23: 0.7 | I23: 0.7 | J23: 0.8 | K23: 1 | L23: 1.1 | M23: 1
A24: 1970 | B24: 0.8 | C24: 0.6 | D24: 0.3 | E24: -0.2 | F24: -0.5 | G24: -0.8 | H24: -1 | I24: -1 | J24: -1 | K24: -0.9 | L24: -0.9 | M24: -1
A25: 1971 | B25: -1.1 | C25: -1 | D25: -0.9 | E25: -0.8 | F25: -0.6 | G25: -0.5 | H25: -0.5 | I25: -0.6 | J25: -0.6 | K25: -0.7 | L25: -0.7 | M25: -0.6
A26: 1972 | B26: -0.4 | C26: -0.2 | D26: 0.1 | E26: 0.4 | F26: 0.8 | G26: 1.2 | H26: 1.5 | I26: 1.8 | J26: 2.1 | K26: 2.3 | L26: 2.3 | M26: 2.2
A27: 1973 | B27: 1.8 | C27: 1.3 | D27: 0.6 | E27: 0.1 | F27: -0.4 | G27: -0.7 | H27: -0.8 | I27: -0.9 | J27: -1 | K27: -1.1 | L27: -1.2 | M27: -1.2
A28: 1974 | B28: -1.1 | C28: -0.9 | D28: -0.7 | E28: -0.4 | F28: -0.2 | G28: -0.1 | H28: -0.1 | I28: -0.1 | J28: -0.2 | K28: -0.3 | L28: -0.3 | M28: -0.4
A29: 1975 | B29: -0.3 | C29: -0.3 | D29: -0.3 | E29: -0.5 | F29: -0.5 | G29: -0.5 | H29: -0.7 | I29: -0.8 | J29: -0.7 | K29: -0.8 | L29: -1 | M29: -1
A30: 1976 | B30: -0.9 | C30: -0.8 | D30: -0.5 | E30: 0 | F30: 0.3 | G30: 0.6 | H30: 0.9 | I30: 1.1 | J30: 1.3 | K30: 1.3 | L30: 1.3 | M30: 1.2
A31: 1977 | B31: 1 | C31: 0.7 | D31: 0.5 | E31: 0.4 | F31: 0.2 | G31: 0 | H31: 0.1 | I31: 0.2 | J31: 0.3 | K31: 0.4 | L31: 0.5 | M31: 0.5
A32: 1978 | B32: 0.4 | C32: 0.2 | D32: 0 | E32: -0.3 | F32: -0.4 | G32: -0.6 | H32: -0.6 | I32: -0.5 | J32: -0.3 | K32: -0.1 | L32: 0.1 | M32: 0.2
A33: 1979 | B33: 0.2 | C33: 0.3 | D33: 0.3 | E33: 0.4 | F33: 0.3 | G33: 0.3 | H33: 0.4 | I33: 0.4 | J33: 0.5 | K33: 0.7 | L33: 0.8 | M33: 0.6
A34: 1980 | B34: 0.5 | C34: 0.4 | D34: 0.3 | E34: 0.3 | F34: 0.3 | G34: 0.3 | H34: 0.2 | I34: 0.1 | J34: 0.1 | K34: 0.1 | L34: 0 | M34: -0.1
A35: 1981 | B35: -0.2 | C35: -0.3 | D35: -0.3 | E35: -0.2 | F35: -0.1 | G35: -0.1 | H35: 0 | I35: 0 | J35: -0.1 | K35: 0 | L35: 0.2 | M35: 0.2
A36: 1982 | B36: 0.1 | C36: 0.2 | D36: 0.4 | E36: 0.5 | F36: 0.6 | G36: 0.9 | H36: 1.2 | I36: 1.5 | J36: 1.8 | K36: 2.3 | L36: 2.6 | M36: 2.7
A37: 1983 | B37: 2.7 | C37: 2.5 | D37: 2.3 | E37: 2.1 | F37: 1.8 | G37: 1.6 | H37: 1.3 | I37: 0.9 | J37: 0.3 | K37: 0 | L37: -0.3 | M37: -0.4
A38: 1984 | B38: -0.3 | C38: -0.1 | D38: -0.1 | E38: -0.2 | F38: -0.4 | G38: -0.4 | H38: -0.5 | I38: -0.6 | J38: -0.5 | K38: -0.6 | L38: -0.7 | M38: -0.9
A39: 1985 | B39: -0.9 | C39: -0.9 | D39: -0.8 | E39: -0.7 | F39: -0.7 | G39: -0.6 | H39: -0.5 | I39: -0.5 | J39: -0.5 | K39: -0.4 | L39: -0.5 | M39: -0.4
A40: 1986 | B40: -0.3 | C40: -0.3 | D40: -0.2 | E40: -0.1 | F40: 0.1 | G40: 0.1 | H40: 0.3 | I40: 0.4 | J40: 0.6 | K40: 0.7 | L40: 0.9 | M40: 1
A41: 1987 | B41: 1.1 | C41: 1.1 | D41: 1.2 | E41: 1.2 | F41: 1.3 | G41: 1.4 | H41: 1.5 | I41: 1.5 | J41: 1.5 | K41: 1.4 | L41: 1.2 | M41: 0.9
A42: 1988 | B42: 0.6 | C42: 0.3 | D42: -0.2 | E42: -0.7 | F42: -1.1 | G42: -1.4 | H42: -1.5 | I42: -1.5 | J42: -1.5 | K42: -1.5 | L42: -1.5 | M42: -1.4
A43: 1989 | B43: -1.4 | C43: -1.1 | D43: -0.9 | E43: -0.6 | F43: -0.5 | G43: -0.3 | H43: -0.3 | I43: -0.2 | J43: -0.3 | K43: -0.3 | L43: -0.3 | M43: -0.2
A44: 1990 | B44: -0.1 | C44: 0 | D44: 0.2 | E44: 0.3 | F44: 0.4 | G44: 0.4 | H44: 0.4 | I44: 0.3 | J44: 0.2 | K44: 0.1 | L44: 0.1 | M44: 0.1
A45: 1991 | B45: 0.1 | C45: 0.2 | D45: 0.3 | E45: 0.5 | F45: 0.7 | G45: 0.8 | H45: 0.9 | I45: 0.9 | J45: 0.9 | K45: 0.9 | L45: 1.1 | M45: 1.3
A46: 1992 | B46: 1.4 | C46: 1.4 | D46: 1.4 | E46: 1.3 | F46: 1 | G46: 0.7 | H46: 0.5 | I46: 0.1 | J46: 0 | K46: -0.1 | L46: -0.1 | M46: 0
A47: 1993 | B47: 0.1 | C47: 0.4 | D47: 0.6 | E47: 0.8 | F47: 0.8 | G47: 0.7 | H47: 0.5 | I47: 0.4 | J47: 0.3 | K47: 0.2 | L47: 0.3 | M47: 0.2
A48: 1994 | B48: 0.1 | C48: 0 | D48: 0 | E48: 0 | F48: -0.1 | G48: -0.1 | H48: 0 | I48: 0.1 | J48: 0.3 | K48: 0.6 | L48: 0.7 | M48: 0.8
A49: 1995 | B49: 0.7 | C49: 0.4 | D49: 0.1 | E49: -0.1 | F49: -0.3 | G49: -0.4 | H49: -0.5 | I49: -0.5 | J49: -0.6 | K49: -0.8 | L49: -0.8 | M49: -0.7
A50: 1996 | B50: -0.6 | C50: -0.5 | D50: -0.4 | E50: -0.4 | F50: -0.4 | G50: -0.4 | H50: -0.3 | I50: -0.3 | J50: -0.3 | K50: -0.5 | L50: -0.6 | M50: -0.6
A51: 1997 | B51: -0.5 | C51: -0.4 | D51: 0 | E51: 0.5 | F51: 1.1 | G51: 1.7 | H51: 2.2 | I51: 2.7 | J51: 3.1 | K51: 3.3 | L51: 3.3 | M51: 3.2
A52: 1998 | B52: 3 | C52: 2.6 | D52: 2.2 | E52: 1.5 | F52: 0.9 | G52: 0.4 | H52: -0.1 | I52: -0.5 | J52: -0.7 | K52: -0.9 | L52: -1.1 | M52: -1.2
A53: 1999 | B53: -1 | C53: -1 | D53: -0.8 | E53: -0.7 | F53: -0.6 | G53: -0.7 | H53: -0.8 | I53: -0.9 | J53: -1.1 | K53: -1.3 | L53: -1.5 | M53: -1.5
A54: 2000 | B54: -1.3 | C54: -1 | D54: -0.7 | E54: -0.5 | F54: -0.3 | G54: -0.3 | H54: -0.4 | I54: -0.4 | J54: -0.4 | K54: -0.5 | L54: -0.5 | M54: -0.5
A55: 2001 | B55: -0.4 | C55: -0.3 | D55: -0.2 | E55: -0.1 | F55: 0 | G55: 0 | H55: -0.1 | I55: -0.2 | J55: -0.3 | K55: -0.4 | L55: -0.5 | M55: -0.4
A56: 2002 | B56: -0.3 | C56: -0.1 | D56: 0 | E56: 0.3 | F56: 0.4 | G56: 0.5 | H56: 0.6 | I56: 0.7 | J56: 0.8 | K56: 1 | L56: 1 | M56: 1
A57: 2003 | B57: 0.8 | C57: 0.5 | D57: 0 | E57: -0.2 | F57: -0.2 | G57: -0.2 | H57: -0.1 | I57: 0.1 | J57: 0.3 | K57: 0.4 | L57: 0.4 | M57: 0.4
A58: 2004 | B58: 0.4 | C58: 0.3 | D58: 0.1 | E58: 0 | F58: -0.1 | G58: 0 | H58: 0 | I58: 0.2 | J58: 0.3 | K58: 0.4 | L58: 0.4 | M58: 0.3
A59: 2005 | B59: 0.2 | C59: 0.1 | D59: 0.1 | E59: 0.1 | F59: 0.2 | G59: 0.3 | H59: 0.2 | I59: 0.1 | J59: -0.2 | K59: -0.5 | L59: -0.7 | M59: -0.8
A60: 2006 | B60: -0.8 | C60: -0.7 | D60: -0.5 | E60: -0.3 | F60: -0.2 | G60: 0.1 | H60: 0.3 | I60: 0.4 | J60: 0.6 | K60: 0.8 | L60: 0.9 | M60: 0.8
A61: 2007 | B61: 0.5 | C61: 0.2 | D61: -0.2 | E61: -0.5 | F61: -0.6 | G61: -0.7 | H61: -0.9 | I61: -1.1 | J61: -1.3 | K61: -1.4 | L61: -1.5 | M61: -1.5
A62: 2008 | B62: -1.4 | C62: -1.1 | D62: -0.8 | E62: -0.5 | F62: -0.1 | G62: 0.1 | H62: 0.2 | I62: 0.2 | J62: 0.2 | K62: 0 | L62: -0.2 | M62: -0.4
A63: 2009 | B63: -0.5 | C63: -0.5 | D63: -0.3 | E63: 0 | F63: 0.3 | G63: 0.5 | H63: 0.7 | I63: 0.8 | J63: 0.9 | K63: 1 | L63: 1 | M63: 1.1
A64: 2010 | B64: 1.1 | C64: 0.9 | D64: 0.7 | E64: 0.3 | F64: 0 | G64: -0.4 | H64: -0.8 | I64: -1.1 | J64: -1.3 | K64: -1.4 | L64: -1.5 | M64: -1.4
A65: 2011 | B65: -1.2 | C65: -0.9 | D65: -0.7 | E65: -0.4 | F65: -0.2 | G65: -0.2 | H65: -0.2 | I65: -0.4 | J65: -0.6 | K65: -0.8 | L65: -0.8 | M65: -0.7
A66: 2012 | B66: -0.6 | C66: -0.3 | D66: -0.1 | E66: 0.1 | F66: 0.3 | G66: 0.4 | H66: 0.5 | I66: 0.5 | J66: 0.4 | K66: 0.2 | L66: 0 | M66: -0.2
A67: 2013 | B67: -0.2 | C67: -0.3 | D67: -0.4 | E67: -0.4 | F67: -0.5 | G67: -0.6 | H67: -0.6 | I67: -0.5 | J67: -0.3 | K67: -0.2 | L67: -0.1 | M67: -0.2
A68: 2014 | B68: -0.2 | C68: -0.1 | D68: 0 | E68: 0.2 | F68: 0.4 | G68: 0.5 | H68: 0.5 | I68: 0.5 | J68: 0.6 | K68: 0.7 | L68: 0.7 | M68: 0.6
A69: 2015 | B69: 0.5 | C69: 0.5 | D69: 0.6 | E69: 0.8 | F69: 1.2 | G69: 1.6 | H69: 1.9 | I69: 2.2 | J69: 2.5 | K69: 2.7 | L69: 2.8 | M69: 2.7

Sheet Event index
A2: # Index: NINO.3
A3: # Year 1949 2015 5-months-running mean :: 6 months consecutive constraint
A4: # Index<=-1: | B4: La Nina | C4: -1<Index<1 | D4: Neutral | E4: 1<=Index: | F4: El Nino
A5: Year | B5: JAN | C5: FEB | D5: MAR | E5: APR | F5: MAY | G5: JUN | H5: JUL | I5: AUG | J5: SEP | K5: OCT | L5: NOV | M5: DEC
A6: 1949 | B6: 0 | C6: 0 | D6: 0 | E6: 0 | F6: 0 | G6: 0 | H6: -1 | I6: -1 | J6: -1 | K6: -1 | L6: -1 | M6: -1
A7: 1950 | B7: -1 | C7: -1 | D7: -1 | E7: -1 | F7: -1 | G7: -1 | H7: -1 | I7: 0 | J7: 0 | K7: 0 | L7: 0 | M7: 0
A8: 1951 | B8: 0 | C8: 0 | D8: 0 | E8: 0 | F8: 1 | G8: 1 | H8: 1 | I8: 1 | J8: 1 | K8: 1 | L8: 1 | M8: 1
A9: 1952 | B9: 1 | C9: 1 | D9: 0 | E9: 0 | F9: 0 | G9: 0 | H9: 0 | I9: 0 | J9: 0 | K9: 0 | L9: 0 | M9: 0
A10: 1953 | B10: 0 | C10: 0 | D10: 0 | E10: 1 | F10: 1 | G10: 1 | H10: 1 | I10: 1 | J10: 1 | K10: 1 | L10: 1 | M10: 0
A11: 1954 | B11: 0 | C11: 0 | D11: 0 | E11: -1 | F11: -1 | G11: -1 | H11: -1 | I11: -1 | J11: -1 | K11: -1 | L11: -1 | M11: -1
A12: 1955 | B12: -1 | C12: -1 | D12: -1 | E12: -1 | F12: -1 | G12: -1 | H12: -1 | I12: -1 | J12: -1 | K12: -1 | L12: -1 | M12: -1
A13: 1956 | B13: -1 | C13: -1 | D13: 0 | E13: 0 | F13: 0 | G13: 0 | H13: 0 | I13: 0 | J13: 0 | K13: 0 | L13: 0 | M13: 0
A14: 1957 | B14: 0 | C14: 0 | D14: 0 | E14: 1 | F14: 1 | G14: 1 | H14: 1 | I14: 1 | J14: 1 | K14: 1 | L14: 1 | M14: 1
A15: 1958 | B15: 1 | C15: 1 | D15: 1 | E15: 1 | F15: 0 | G15: 0 | H15: 0 | I15: 0 | J15: 0 | K15: 0 | L15: 0 | M15: 0
A16: 1959 | B16: 0 | C16: 0 | D16: 0 | E16: 0 | F16: 0 | G16: 0 | H16: 0 | I16: 0 | J16: 0 | K16: 0 | L16: 0 | M16: 0
A17: 1960 | B17: 0 | C17: 0 | D17: 0 | E17: 0 | F17: 0 | G17: 0 | H17: 0 | I17: 0 | J17: 0 | K17: 0 | L17: 0 | M17: 0
A18: 1961 | B18: 0 | C18: 0 | D18: 0 | E18: 0 | F18: 0 | G18: 0 | H18: 0 | I18: 0 | J18: 0 | K18: 0 | L18: 0 | M18: 0
A19: 1962 | B19: 0 | C19: 0 | D19: 0 | E19: 0 | F19: 0 | G19: 0 | H19: 0 | I19: 0 | J19: 0 | K19: 0 | L19: 0 | M19: 0
A20: 1963 | B20: 0 | C20: 0 | D20: 0 | E20: 0 | F20: 0 | G20: 1 | H20: 1 | I20: 1 | J20: 1 | K20: 1 | L20: 1 | M20: 1
A21: 1964 | B21: 1 | C21: 0 | D21: 0 | E21: -1 | F21: -1 | G21: -1 | H21: -1 | I21: -1 | J21: -1 | K21: -1 | L21: -1 | M21: -1
A22: 1965 | B22: -1 | C22: 0 | D22: 0 | E22: 0 | F22: 1 | G22: 1 | H22: 1 | I22: 1 | J22: 1 | K22: 1 | L22: 1 | M22: 1
A23: 1966 | B23: 1 | C23: 1 | D23: 0 | E23: 0 | F23: 0 | G23: 0 | H23: 0 | I23: 0 | J23: 0 | K23: 0 | L23: 0 | M23: 0
A24: 1967 | B24: 0 | C24: 0 | D24: 0 | E24: 0 | F24: 0 | G24: 0 | H24: 0 | I24: 0 | J24: -1 | K24: -1 | L24: -1 | M24: -1
A25: 1968 | B25: -1 | C25: -1 | D25: -1 | E25: -1 | F25: 0 | G25: 0 | H25: 0 | I25: 0 | J25: 1 | K25: 1 | L25: 1 | M25: 1
A26: 1969 | B26: 1 | C26: 1 | D26: 1 | E26: 1 | F26: 1 | G26: 1 | H26: 1 | I26: 1 | J26: 1 | K26: 1 | L26: 1 | M26: 1
A27: 1970 | B27: 1 | C27: 1 | D27: 0 | E27: 0 | F27: -1 | G27: -1 | H27: -1 | I27: -1 | J27: -1 | K27: -1 | L27: -1 | M27: -1
A28: 1971 | B28: -1 | C28: -1 | D28: -1 | E28: -1 | F28: -1 | G28: -1 | H28: -1 | I28: -1 | J28: -1 | K28: -1 | L28: -1 | M28: -1
A29: 1972 | B29: 0 | C29: 0 | D29: 0 | E29: 0 | F29: 1 | G29: 1 | H29: 1 | I29: 1 | J29: 1 | K29: 1 | L29: 1 | M29: 1
A30: 1973 | B30: 1 | C30: 1 | D30: 1 | E30: 0 | F30: 0 | G30: -1 | H30: -1 | I30: -1 | J30: -1 | K30: -1 | L30: -1 | M30: -1
A31: 1974 | B31: -1 | C31: -1 | D31: -1 | E31: 0 | F31: 0 | G31: 0 | H31: 0 | I31: 0 | J31: 0 | K31: 0 | L31: 0 | M31: 0
A32: 1975 | B32: 0 | C32: 0 | D32: 0 | E32: -1 | F32: -1 | G32: -1 | H32: -1 | I32: -1 | J32: -1 | K32: -1 | L32: -1 | M32: -1
A33: 1976 | B33: -1 | C33: -1 | D33: -1 | E33: 0 | F33: 0 | G33: 1 | H33: 1 | I33: 1 | J33: 1 | K33: 1 | L33: 1 | M33: 1
A34: 1977 | B34: 1 | C34: 1 | D34: 1 | E34: 0 | F34: 0 | G34: 0 | H34: 0 | I34: 0 | J34: 0 | K34: 0 | L34: 0 | M34: 0
A35: 1978 | B35: 0 | C35: 0 | D35: 0 | E35: 0 | F35: 0 | G35: 0 | H35: 0 | I35: 0 | J35: 0 | K35: 0 | L35: 0 | M35: 0
A36: 1979 | B36: 0 | C36: 0 | D36: 0 | E36: 0 | F36: 0 | G36: 0 | H36: 0 | I36: 0 | J36: 0 | K36: 0 | L36: 0 | M36: 0
A37: 1980 | B37: 0 | C37: 0 | D37: 0 | E37: 0 | F37: 0 | G37: 0 | H37: 0 | I37: 0 | J37: 0 | K37: 0 | L37: 0 | M37: 0
A38: 1981 | B38: 0 | C38: 0 | D38: 0 | E38: 0 | F38: 0 | G38: 0 | H38: 0 | I38: 0 | J38: 0 | K38: 0 | L38: 0 | M38: 0
A39: 1982 | B39: 0 | C39: 0 | D39: 0 | E39: 1 | F39: 1 | G39: 1 | H39: 1 | I39: 1 | J39: 1 | K39: 1 | L39: 1 | M39: 1
A40: 1983 | B40: 1 | C40: 1 | D40: 1 | E40: 1 | F40: 1 | G40: 1 | H40: 1 | I40: 1 | J40: 0 | K40: 0 | L40: 0 | M40: 0
A41: 1984 | B41: 0 | C41: 0 | D41: 0 | E41: 0 | F41: 0 | G41: 0 | H41: -1 | I41: -1 | J41: -1 | K41: -1 | L41: -1 | M41: -1
A42: 1985 | B42: -1 | C42: -1 | D42: -1 | E42: -1 | F42: -1 | G42: -1 | H42: -1 | I42: -1 | J42: -1 | K42: 0 | L42: 0 | M42: 0
A43: 1986 | B43: 0 | C43: 0 | D43: 0 | E43: 0 | F43: 0 | G43: 0 | H43: 0 | I43: 0 | J43: 1 | K43: 1 | L43: 1 | M43: 1
A44: 1987 | B44: 1 | C44: 1 | D44: 1 | E44: 1 | F44: 1 | G44: 1 | H44: 1 | I44: 1 | J44: 1 | K44: 1 | L44: 1 | M44: 1
A45: 1988 | B45: 1 | C45: 0 | D45: 0 | E45: -1 | F45: -1 | G45: -1 | H45: -1 | I45: -1 | J45: -1 | K45: -1 | L45: -1 | M45: -1
A46: 1989 | B46: -1 | C46: -1 | D46: -1 | E46: -1 | F46: -1 | G46: 0 | H46: 0 | I46: 0 | J46: 0 | K46: 0 | L46: 0 | M46: 0
A47: 1990 | B47: 0 | C47: 0 | D47: 0 | E47: 0 | F47: 0 | G47: 0 | H47: 0 | I47: 0 | J47: 0 | K47: 0 | L47: 0 | M47: 0
A48: 1991 | B48: 0 | C48: 0 | D48: 0 | E48: 1 | F48: 1 | G48: 1 | H48: 1 | I48: 1 | J48: 1 | K48: 1 | L48: 1 | M48: 1
A49: 1992 | B49: 1 | C49: 1 | D49: 1 | E49: 1 | F49: 1 | G49: 1 | H49: 1 | I49: 0 | J49: 0 | K49: 0 | L49: 0 | M49: 0
A50: 1993 | B50: 0 | C50: 0 | D50: 0 | E50: 0 | F50: 0 | G50: 0 | H50: 0 | I50: 0 | J50: 0 | K50: 0 | L50: 0 | M50: 0
A51: 1994 | B51: 0 | C51: 0 | D51: 0 | E51: 0 | F51: 0 | G51: 0 | H51: 0 | I51: 0 | J51: 0 | K51: 0 | L51: 0 | M51: 0
A52: 1995 | B52: 0 | C52: 0 | D52: 0 | E52: 0 | F52: 0 | G52: 0 | H52: -1 | I52: -1 | J52: -1 | K52: -1 | L52: -1 | M52: -1
A53: 1996 | B53: -1 | C53: -1 | D53: 0 | E53: 0 | F53: 0 | G53: 0 | H53: 0 | I53: 0 | J53: 0 | K53: 0 | L53: 0 | M53: 0
A54: 1997 | B54: 0 | C54: 0 | D54: 0 | E54: 1 | F54: 1 | G54: 1 | H54: 1 | I54: 1 | J54: 1 | K54: 1 | L54: 1 | M54: 1
A55: 1998 | B55: 1 | C55: 1 | D55: 1 | E55: 1 | F55: 1 | G55: 0 | H55: 0 | I55: -1 | J55: -1 | K55: -1 | L55: -1 | M55: -1
A56: 1999 | B56: -1 | C56: -1 | D56: -1 | E56: -1 | F56: -1 | G56: -1 | H56: -1 | I56: -1 | J56: -1 | K56: -1 | L56: -1 | M56: -1
A57: 2000 | B57: -1 | C57: -1 | D57: -1 | E57: -1 | F57: 0 | G57: 0 | H57: 0 | I57: 0 | J57: 0 | K57: 0 | L57: 0 | M57: 0
A58: 2001 | B58: 0 | C58: 0 | D58: 0 | E58: 0 | F58: 0 | G58: 0 | H58: 0 | I58: 0 | J58: 0 | K58: 0 | L58: 0 | M58: 0
A59: 2002 | B59: 0 | C59: 0 | D59: 0 | E59: 0 | F59: 0 | G59: 1 | H59: 1 | I59: 1 | J59: 1 | K59: 1 | L59: 1 | M59: 1
A60: 2003 | B60: 1 | C60: 1 | D60: 0 | E60: 0 | F60: 0 | G60: 0 | H60: 0 | I60: 0 | J60: 0 | K60: 0 | L60: 0 | M60: 0
A61: 2004 | B61: 0 | C61: 0 | D61: 0 | E61: 0 | F61: 0 | G61: 0 | H61: 0 | I61: 0 | J61: 0 | K61: 0 | L61: 0 | M61: 0
A62: 2005 | B62: 0 | C62: 0 | D62: 0 | E62: 0 | F62: 0 | G62: 0 | H62: 0 | I62: 0 | J62: 0 | K62: -1 | L62: -1 | M62: -1
A63: 2006 | B63: -1 | C63: -1 | D63: -1 | E63: 0 | F63: 0 | G63: 0 | H63: 0 | I63: 0 | J63: 0 | K63: 0 | L63: 0 | M63: 0
A64: 2007 | B64: 0 | C64: 0 | D64: 0 | E64: -1 | F64: -1 | G64: -1 | H64: -1 | I64: -1 | J64: -1 | K64: -1 | L64: -1 | M64: -1
A65: 2008 | B65: -1 | C65: -1 | D65: -1 | E65: -1 | F65: 0 | G65: 0 | H65: 0 | I65: 0 | J65: 0 | K65: 0 | L65: 0 | M65: 0
A66: 2009 | B66: 0 | C66: 0 | D66: 0 | E66: 0 | F66: 0 | G66: 1 | H66: 1 | I66: 1 | J66: 1 | K66: 1 | L66: 1 | M66: 1
A67: 2010 | B67: 1 | C67: 1 | D67: 1 | E67: 0 | F67: 0 | G67: 0 | H67: -1 | I67: -1 | J67: -1 | K67: -1 | L67: -1 | M67: -1
A68: 2011 | B68: -1 | C68: -1 | D68: -1 | E68: 0 | F68: 0 | G68: 0 | H68: 0 | I68: 0 | J68: 0 | K68: 0 | L68: 0 | M68: 0
A69: 2012 | B69: 0 | C69: 0 | D69: 0 | E69: 0 | F69: 0 | G69: 0 | H69: 0 | I69: 0 | J69: 0 | K69: 0 | L69: 0 | M69: 0
A70: 2013 | B70: 0 | C70: 0 | D70: 0 | E70: 0 | F70: 0 | G70: 0 | H70: 0 | I70: 0 | J70: 0 | K70: 0 | L70: 0 | M70: 0
A71: 2014 | B71: 0 | C71: 0 | D71: 0 | E71: 0 | F71: 0 | G71: 1 | H71: 1 | I71: 1 | J71: 1 | K71: 1 | L71: 1 | M71: 1
A72: 2015 | B72: 1 | C72: 1 | D72: 1 | E72: 1 | F72: 1 | G72: 1 | H72: 1 | I72: 1 | J72: 1 | K72: 1 | L72: 1 | M72: 1

Sheet climat
A1: #station= Dhaka
A2: WMOnumber=41923
A3: Year | B3: Month | C3: Mean_Temp | D3: Precip
A4: 1953 | B4: 1 | C4: 18 | D4: 0
A5: 1953 | B5: 2 | C5: 22.1 | D5: 0
A6: 1953 | B6: 3 | C6: 27.2 | D6: 0
A7: 1953 | B7: 4 | C7: 29.2 | D7: 90
A8: 1953 | B8: 5 | C8: 28.5 | D8: 274
A9: 1953 | B9: 6 | C9: 28.2 | D9: 333
A10: 1953 | B10: 7 | C10: 28.2 | D10: 392
A11: 1953 | B11: 8 | C11: 28.6 | D11: 326
A12: 1953 | B12: 9 | C12: 28.7 | D12: 352
A13: 1953 | B13: 10 | C13: 26.9 | D13: 52
A14: 1953 | B14: 11 | C14: 22.9 | D14: 13
A15: 1953 | B15: 12 | C15: 20.8 | D15: 0
A16: 1954 | B16: 1 | C16: 17.4 | D16: 14
A17: 1954 | B17: 2 | C17: 23.2 | D17: 0
A18: 1954 | B18: 3 | C18: 26.5 | D18: 0
A19: 1954 | B19: 4 | C19: 29.5 | D19: 86
A20: 1954 | B20: 5 | C20: 29.3 | D20: 211
A21: 1954 | B21: 6 | C21: 27.5 | D21: 810
A22: 1954 | B22: 7 | C22: 28.5 | D22: 320
A23: 1954 | B23: 8 | C23: 28.5 | D23: 433
A24: 1954 | B24: 9 | C24: 28.7 | D24: 167
A25: 1954 | B25: 10 | C25: 26.1 | D25: 218
A26: 1954 | B26: 11 | C26: 21.8 | D26: 0
A27: 1954 | B27: 12 | C27: 19.2 | D27: 10
A28: 1955 | B28: 1 | C28: 18 | D28: 0
A29: 1955 | B29: 2 | C29: 20.3 | D29: 0
A30: 1955 | B30: 3 | C30: 26.5 | D30: 0
A31: 1955 | B31: 4 | C31: 27.6 | D31: 54
A32: 1955 | B32: 5 | C32: 28.8 | D32: 201
A33: 1955 | B33: 6 | C33: 28.6 | D33: 254
A34: 1955 | B34: 7 | C34: 28 | D34: 502
A35: 1955 | B35: 8 | C35: 28.1 | D35: 247
A36: 1955 | B36: 9 | C36: 28.6 | D36: 149
A37: 1955 | B37: 10 | C37: 27.7 | D37: 71
A38: 1955 | B38: 11 | C38: 23.6 | D38: 99
A39: 1955 | B39: 12 | C39: 18.4 | D39: 0
A40: 1956 | B40: 1 | C40: 18.3 | D40: 12
A41: 1956 | B41: 2 | C41: 20.1 | D41: 5
A42: 1956 | B42: 3 | C42: 25.9 | D42: 189
A43: 1956 | B43: 4 | C43: 28.7 | D43: 135
A44: 1956 | B44: 5 | C44: 28.9 | D44: 69
A45: 1956 | B45: 6 | C45: 27.7 | D45: 433
A46: 1956 | B46: 7 | C46: 28.2 | D46: 690
A47: 1956 | B47: 8 | C47: 28.5 | D47: 489
A48: 1956 | B48: 9 | C48: 28.1 | D48: 286
A49: 1956 | B49: 10 | C49: 27.5 | D49: 121
A50: 1956 | B50: 11 | C50: 23.5 | D50: 53
A51: 1956 | B51: 12 | C51: 19.5 | D51: 13
A52: 1957 | B52: 1 | C52: 18.9 | D52: 68
A53: 1957 | B53: 2 | C53: 19.9 | D53: 69
A54: 1957 | B54: 3 | C54: 24.5 | D54: 16
A55: 1957 | B55: 4 | C55: 29.3 | D55: 117
A56: 1957 | B56: 5 | C56: 29.8 | D56: 114
A57: 1957 | B57: 6 | C57: 28.6 | D57: 487
A58: 1957 | B58: 7 | C58: 28.6 | D58: 385
A59: 1957 | B59: 8 | C59: 29.1 | D59: 125
A60: 1957 | B60: 9 | C60: 29.1 | D60: 144
A61: 1957 | B61: 10 | C61: 26.9 | D61: 29
A62: 1957 | B62: 11 | C62: 22.7 | D62: 0
A63: 1957 | B63: 12 | C63: 19.8 | D63: 0
A64: 1958 | B64: 1 | C64: 19.9 | D64: 0
A65: 1958 | B65: 2 | C65: 21.3 | D65: 95
A66: 1958 | B66: 3 | C66: 26.4 | D66: 5
A67: 1958 | B67: 4 | C67: 29.8 | D67: 64
A68: 1958 | B68: 5 | C68: 29.7 | D68: 200
A69: 1958 | B69: 6 | C69: 29.9 | D69: 161
A70: 1958 | B70: 7 | C70: 28.9 | D70: 184
A71: 1958 | B71: 8 | C71: 28.7 | D71: 267
A72: 1958 | B72: 9 | C72: 29 | D72: 91
A73: 1958 | B73: 10 | C73: 27.9 | D73: 191
A74: 1958 | B74: 11 | C74: 23.9 | D74: 0
A75: 1958 | B75: 12 | C75: 20.1 | D75: 0
A76: 1959 | B76: 1 | C76: 18.7 | D76: 15
A77: 1959 | B77: 2 | C77: 20.4 | D77: 4
A78: 1959 | B78: 3 | C78: 25.7 | D78: 78
A79: 1959 | B79: 4 | C79: 29 | D79: 78
A80: 1959 | B80: 5 | C80: 28.9 | D80: 254
A81: 1959 | B81: 6 | C81: 28.8 | D81: 368
A82: 1959 | B82: 7 | C82: 28.4 | D82: 230
A83: 1959 | B83: 8 | C83: 28.3 | D83: 413
A84: 1959 | B84: 9 | C84: 27.8 | D84: 445
A85: 1959 | B85: 10 | C85: 26.2 | D85: 568
A86: 1959 | B86: 11 | C86: 22.4 | D86: 0
A87: 1959 | B87: 12 | C87: 19.3 | D87: 0
A88: 1960 | B88: 1 | C88: 18 | D88: 0
A89: 1960 | B89: 2 | C89: 22.9 | D89: 0
A90: 1960 | B90: 3 | C90: 25.1 | D90: 16
A91: 1960 | B91: 4 | C91: 30.8 | D91: 19
A92: 1960 | B92: 5 | C92: 30 | D92: 358
A93: 1960 | B93: 6 | C93: 29 | D93: 304
A94: 1960 | B94: 7 | C94: 28.1 | D94: 655
A95: 1960 | B95: 8 | C95: 29 | D95: 189
A96: 1960 | B96: 9 | C96: 28.4 | D96: 231
A97: 1960 | B97: 10 | C97: 27.2 | D97: 38
A98: 1960 | B98: 11 | C98: 22.3 | D98: 24
A99: 1960 | B99: 12 | C99: 19.5 | D99: 0
A100: 1961 | B100: 1 | C100: 19 | D100: 1
A101: 1961 | B101: 2 | C101: 19.4 | D101: 12
A102: 1961 | B102: 3 | C102: 27.5 | D102: 20
A103: 1961 | B103: 4 | C103: 29.3 | D103: 205
A104: 1961 | B104: 5 | C104: 28.7 | D104: 219
A105: 1961 | B105: 6 | C105: 28 | D105: 856
A106: 1961 | B106: 7 | C106: 28.5 | D106: 296
A107: 1961 | B107: 8 | C107: 28.5 | D107: 288
A108: 1961 | B108: 9 | C108: 28.1 | D108: 221
A109: 1961 | B109: 10 | C109: 27 | D109: 52
A110: 1961 | B110: 11 | C110: 22 | D110: 0
A111: 1961 | B111: 12 | C111: 17.7 | D111: 0
A112: 1962 | B112: 1 | C112: 17.3 | D112: 0
A113: 1962 | B113: 2 | C113: 21.6 | D113: 15
A114: 1962 | B114: 3 | C114: 26.4 | D114: 6
A115: 1962 | B115: 4 | C115: 29.5 | D115: 166
A116: 1962 | B116: 5 | C116: 28.2 | D116: 205
A117: 1962 | B117: 6 | C117: 28.5 | D117: 191
A118: 1962 | B118: 7 | C118: 29.1 | D118: 355
A119: 1962 | B119: 8 | C119: 28.4 | D119: 273
A120: 1962 | B120: 9 | C120: 28.7 | D120: 395
A121: 1962 | B121: 10 | C121: 26.7 | D121: 180
A122: 1962 | B122: 11 | C122: 22.5 | D122: 0
A123: 1962 | B123: 12 | C123: 18.9 | D123: 0
A124: 1963 | B124: 1 | C124: 18 | D124: 0
A125: 1963 | B125: 2 | C125: 22.9 | D125: 0
A126: 1963 | B126: 3 | C126: 26 | D126: 51
A127: 1963 | B127: 4 | C127: 27.8 | D127: 98
A128: 1963 | B128: 5 | C128: 28.1 | D128: 219
A129: 1963 | B129: 6 | C129: 28.5 | D129: 621
A130: 1963 | B130: 7 | C130: 28.7 | D130: 404
A131: 1963 | B131: 8 | C131: 28.8 | D131: 186
A132: 1963 | B132: 9 | C132: 29 | D132: 200
A133: 1963 | B133: 10 | C133: 27 | D133: 182
A134: 1963 | B134: 11 | C134: 23 | D134: 7
A135: 1963 | B135: 12 | C135: 19.7 | D135: 3
A136: 1964 | B136: 1 | C136: 17.6 | D136: 9
A137: 1964 | B137: 2 | C137: 21.9 | D137: 42
A138: 1964 | B138: 3 | C138: 27.5 | D138: 18
A139: 1964 | B139: 4 | C139: 28.2 | D139: 296
A140: 1964 | B140: 5 | C140: 28.5 | D140: 236
A141: 1964 | B141: 6 | C141: 28.6 | D141: 354
A142: 1964 | B142: 7 | C142: 28 | D142: 629
A143: 1964 | B143: 8 | C143: 28.7 | D143: 155
A144: 1964 | B144: 9 | C144: 28.6 | D144: 269
A145: 1964 | B145: 10 | C145: 27.5 | D145: 283
A146: 1964 | B146: 11 | C146: 23.8 | D146: 41
A147: 1964 | B147: 12 | C147: 20 | D147: 0
A148: 1965 | B148: 1 | C148: 18.7 | D148: 0
A149: 1965 | B149: 2 | C149: 21 | D149: 28
A150: 1965 | B150: 3 | C150: 25.2 | D150: 22
A151: 1965 | B151: 4 | C151: 28.8 | D151: 55
A152: 1965 | B152: 5 | C152: 29.5 | D152: 305
A153: 1965 | B153: 6 | C153: 28.2 | D153: 442
A154: 1965 | B154: 7 | C154: 28.2 | D154: 304
A155: 1965 | B155: 8 | C155: 27.8 | D155: 480
A156: 1965 | B156: 9 | C156: 28.4 | D156: 300
A157: 1965 | B157: 10 | C157: 27.1 | D157: 50
A158: 1965 | B158: 11 | C158: 23.6 | D158: 131
A159: 1965 | B159: 12 | C159: 20 | D159: 0
A160: 1966 | B160: 1
A161: 1966 | B161: 2
A162: 1966 | B162: 3
A163: 1966 | B163: 4 | C163: 30.4 | D163: 34
A164: 1966 | B164: 5 | C164: 30.5 | D164: 127
A165: 1966 | B165: 6 | C165: 28.4 | D165: 270
A166: 1966 | B166: 7 | C166: 28.7 | D166: 291
A167: 1966 | B167: 8 | C167: 28.6 | D167: 306
A168: 1966 | B168: 9 | C168: 28.2 | D168: 496
A169: 1966 | B169: 10 | C169: 26.2 | D169: 261
A170: 1966 | B170: 11 | C170: 24.1 | D170: 14
A171: 1966 | B171: 12 | C171: 19.4 | D171: 15
A172: 1967 | B172: 1 | C172: 19 | D172: 23
A173: 1967 | B173: 2 | C173: 22.3 | D173: 12
A174: 1967 | B174: 3 | C174: 25 | D174: 168
A175: 1967 | B175: 4 | C175: 27.8 | D175: 185
A176: 1967 | B176: 5 | C176: 29 | D176: 216
A177: 1967 | B177: 6 | C177: 29.1 | D177: 241
A178: 1967 | B178: 7 | C178: 28.9 | D178: 363
A179: 1967 | B179: 8 | C179: 28.5 | D179: 504
A180: 1967 | B180: 9 | C180: 27.9 | D180: 266
A181: 1967 | B181: 10 | C181: 26.8 | D181: 74
A182: 1967 | B182: 11 | C182: 22.1 | D182: 1
A183: 1967 | B183: 12 | C183: 19.9 | D183: 0
A184: 1968 | B184: 1 | C184: 18.5 | D184: 0
A185: 1968 | B185: 2 | C185: 20.4 | D185: 5
A186: 1968 | B186: 3 | C186: 26.2 | D186: 121
A187: 1968 | B187: 4 | C187: 28.3 | D187: 27
A188: 1968 | B188: 5 | C188: 28.5 | D188: 194
A189: 1968 | B189: 6 | C189: 27.6 | D189: 590
A190: 1968 | B190: 7 | C190: 28.5 | D190: 480
A191: 1968 | B191: 8 | C191: 28.7 | D191: 212
A192: 1968 | B192: 9 | C192: 29.3 | D192: 128
A193: 1968 | B193: 10 | C193: 27.1 | D193: 69
A194: 1968 | B194: 11 | C194: 23.7 | D194: 74
A195: 1968 | B195: 12 | C195: 19.6 | D195: 0
A196: 1969 | B196: 1 | C196: 18.4 | D196: 0
A197: 1969 | B197: 2 | C197: 21.7 | D197: 1
A198: 1969 | B198: 3 | C198: 26.6 | D198: 65
A199: 1969 | B199: 4 | C199: 28.8 | D199: 86
A200: 1969 | B200: 5 | C200: 29.7 | D200: 95
... 559 more rows

Sheet Precip.
A1: Year | B1: Month | C1: Precip. | D1: Index | E1: Event
A2: 1953 | B2: 8 | C2: 326 | D2: 0.6 | E2: 1 | G2: Start Year | H2: 1953 | J2: Options of tertile thresholds | M2: Dry | N2: Normal | O2: Wet | P2: S1-Value | Q2: S2-Value
A3: 1954 | B3: 8 | C3: 433 | D3: -0.8 | E3: -1 | G3: End Year | H3: 2015 | J3: =PERCENTILE(OFFSET($C$2,0,0,$H$8,1), 1/3) -> 253.6666667 | K3: =PERCENTILE(OFFSET($C$2,0,0,$H$8,1), 2/3) -> 361 | M3: =COUNTIF(OFFSET($C$2,0,0,$H$8,1),"<="&$J3) -> 21 | N3: =COUNTIF(OFFSET($C$2,0,0,$H$8,1),"<="&$K3)-M3 -> 22 | O3: =COUNTIF(OFFSET($C$2,0,0,$H$8,1),">"&$K3) -> 19 | P3: =(1/3-$M3/$H$9)^2+(1/3-$N3/$H$9)^2+(1/3-$O3/$H$9)^2 -> 0.001214013181 | Q3: =ABS($J$3-J3)+ABS($K$3-K3) -> 0
A4: 1955 | B4: 8 | C4: 247 | D4: -0.9 | E4: -1 | G4: Calendar Month | H4: 8 | J4: =IF(J3=0,J3,J3-1) -> 252.6666667 | K4: =K3 -> 361 | M4: =COUNTIF(OFFSET($C$2,0,0,$H$8,1),"<="&$J4) -> 21 | N4: =COUNTIF(OFFSET($C$2,0,0,$H$8,1),"<="&$K4)-M4 -> 22 | O4: =COUNTIF(OFFSET($C$2,0,0,$H$8,1),">"&$K4) -> 19 | P4: =(1/3-$M4/$H$9)^2+(1/3-$N4/$H$9)^2+(1/3-$O4/$H$9)^2 -> 0.001214013181 | Q4: =ABS($J$3-J4)+ABS($K$3-K4) -> 1
A5: 1956 | B5: 8 | C5: 489 | D5: -0.3 | E5: 0 | J5: =J3 -> 253.6666667 | K5: =IF(K3=0,K3,K3-1) -> 360 | M5: =COUNTIF(OFFSET($C$2,0,0,$H$8,1),"<="&$J5) -> 21 | N5: =COUNTIF(OFFSET($C$2,0,0,$H$8,1),"<="&$K5)-M5 -> 19 | O5: =COUNTIF(OFFSET($C$2,0,0,$H$8,1),">"&$K5) -> 22 | P5: =(1/3-$M5/$H$9)^2+(1/3-$N5/$H$9)^2+(1/3-$O5/$H$9)^2 -> 0.001214013181 | Q5: =ABS($J$3-J5)+ABS($K$3-K5) -> 1
A6: 1957 | B6: 8 | C6: 125 | D6: 1.2 | E6: 1 | J6: =IF(J3=0,J3,J3-1) -> 252.6666667 | K6: =IF(K3=0,K3,K3-1) -> 360 | M6: =COUNTIF(OFFSET($C$2,0,0,$H$8,1),"<="&$J6) -> 21 | N6: =COUNTIF(OFFSET($C$2,0,0,$H$8,1),"<="&$K6)-M6 -> 19 | O6: =COUNTIF(OFFSET($C$2,0,0,$H$8,1),">"&$K6) -> 22 | P6: =(1/3-$M6/$H$9)^2+(1/3-$N6/$H$9)^2+(1/3-$O6/$H$9)^2 -> 0.001214013181 | Q6: =ABS($J$3-J6)+ABS($K$3-K6) -> 2
A7: 1958 | B7: 8 | C7: 267 | D7: 0.2 | E7: 0
A8: 1959 | B8: 8 | C8: 413 | D8: -0.1 | E8: 0 | G8: Total Year | H8: =H3-H2+1 -> 63
A9: 1960 | B9: 8 | C9: 189 | D9: 0 | E9: 0 | G9: Effective Year | H9: =COUNTIF(OFFSET($C$2,0,0,$H$8,1),"<>") -> 62 | J9: Tertile thresholds | L9: Probability | M9: Dry | N9: Normal | O9: Wet
A10: 1961 | B10: 8 | C10: 288 | D10: -0.4 | E10: 0 | J10: 253.6666667 | K10: 361 | M10: =M3/SUM($M$3:$O$3) -> 0.3387096774 | N10: =N3/SUM($M$3:$O$3) -> 0.3548387097 | O10: =O3/SUM($M$3:$O$3) -> 0.3064516129
A11: 1962 | B11: 8 | C11: 273 | D11: -0.2 | E11: 0 | G11: Sampling bias rate(%) | H11: =ABS($N$13-$N$15)/$N$14*100 -> 3.225806452
A12: 1963 | B12: 8 | C12: 186 | D12: 0.9 | E12: 1 | J12: Count | K12: Dry | L12: Normal | M12: Wet | N12: Sum.
A13: 1964 | B13: 8 | C13: 155 | D13: -0.8 | E13: -1 | J13: ='Event index'!$F$4 -> El Nino | K13: =COUNTIFS(OFFSET($C$2,0,0,$H$8,1),"<="&$J$10,OFFSET($E$2,0,0,$H$8,1),1) -> 3 | L13: =COUNTIFS(OFFSET($C$2,0,0,$H$8,1),">"&$J$10,OFFSET($C$2,0,0,$H$8,1),"<="&$K$10,OFFSET($E$2,0,0,$H$8,1),1) -> 5 | M13: =COUNTIFS(OFFSET($C$2,0,0,$H$8,1),">"&$K$10,OFFSET($E$2,0,0,$H$8,1),1) -> 8 | N13: =SUM(K13:M13) -> 16
A14: 1965 | B14: 8 | C14: 480 | D14: 1.3 | E14: 1 | J14: ='Event index'!$D$4 -> Neutral | K14: =COUNTIFS(OFFSET($C$2,0,0,$H$8,1),"<="&$J$10,OFFSET($E$2,0,0,$H$8,1),0) -> 14 | L14: =COUNTIFS(OFFSET($C$2,0,0,$H$8,1),">"&$J$10,OFFSET($C$2,0,0,$H$8,1),"<="&$K$10,OFFSET($E$2,0,0,$H$8,1),0) -> 10 | M14: =COUNTIFS(OFFSET($C$2,0,0,$H$8,1),">"&$K$10,OFFSET($E$2,0,0,$H$8,1),0) -> 7 | N14: =SUM(K14:M14) -> 31
A15: 1966 | B15: 8 | C15: 306 | D15: -0.1 | E15: 0 | J15: ='Event index'!$B$4 -> La Nina | K15: =COUNTIFS(OFFSET($C$2,0,0,$H$8,1),"<="&$J$10,OFFSET($E$2,0,0,$H$8,1),-1) -> 4 | L15: =COUNTIFS(OFFSET($C$2,0,0,$H$8,1),">"&$J$10,OFFSET($C$2,0,0,$H$8,1),"<="&$K$10,OFFSET($E$2,0,0,$H$8,1),-1) -> 7 | M15: =COUNTIFS(OFFSET($C$2,0,0,$H$8,1),">"&$K$10,OFFSET($E$2,0,0,$H$8,1),-1) -> 4 | N15: =SUM(K15:M15) -> 15
A16: 1967 | B16: 8 | C16: 504 | D16: -0.4 | E16: 0
A17: 1968 | B17: 8 | C17: 212 | D17: 0.4 | E17: 0 | J17: Percentage | K17: Dry | L17: Normal | M17: Wet | N17: Sum.
A18: 1969 | B18: 8 | C18: 540 | D18: 0.7 | E18: 1 | J18: ='Event index'!$F$4 -> El Nino | K18: =INT(K13/$N13*100+0.5) -> 19 | L18: 31 | M18: 50 | N18: =SUM(K18:M18) -> 100
A19: 1970 | B19: 8 | C19: 280 | D19: -1 | E19: -1 | J19: ='Event index'!$D$4 -> Neutral | K19: 45 | L19: 32 | M19: 23 | N19: =SUM(K19:M19) -> 100
A20: 1971 | B20: 8 | C20: 540 | D20: -0.6 | E20: -1 | J20: ='Event index'!$B$4 -> La Nina | K20: 27 | L20: 47 | M20: 27 | N20: =SUM(K20:M20) -> 101
A21: 1972 | B21: 8 | C21: 380 | D21: 1.8 | E21: 1
A22: 1973 | B22: 8 | C22: 238 | D22: -0.9 | E22: -1 | J22: Binomial test: (p-value) | Q22: Correlation | R22: r | S22: t-value | T22: p-value
A23: 1974 | B23: 8 | D23: -0.1 | E23: 0 | K23: Dry | L23: Normal | M23: Wet | N23: Not Dry | O23: Not Wet | R23: =CORREL(OFFSET($D$2,0,0,$H$8,1), OFFSET($C$2,0,0,$H$8,1)) -> 0.02809649095 | S23: =R23*SQRT($H$9-2)/SQRT(1-R23*R23) -> 0.2177204357 | T23: =TDIST(ABS(S23),$H$9-2,2) -> 0.8283856819
A24: 1975 | B24: 8 | C24: 307 | D24: -0.8 | E24: -1 | J24: ='Event index'!$F$4 -> El Nino | K24: =1-_xlfn.BINOM.DIST(K13-1,$N13,$M$10,TRUE) -> 0.9455977321 | L24: =1-_xlfn.BINOM.DIST(L13-1,$N13,$N$10,TRUE) -> 0.7244842283 | M24: =1-_xlfn.BINOM.DIST(M13-1,$N13,$O$10,TRUE) -> 0.08305052471 | N24: =1-_xlfn.BINOM.DIST(L13+M13-1,N13,$N$10+$O$10,TRUE) -> 0.1550418944 | O24: =1-_xlfn.BINOM.DIST(K13+L13-1,N13,$M$10+$N$10,TRUE) -> 0.9705399948
A25: 1976 | B25: 8 | C25: 361 | D25: 1.1 | E25: 1 | J25: ='Event index'!$D$4 -> Neutral | K25: =1-_xlfn.BINOM.DIST(K14-1,$N14,$M$10,TRUE) -> 0.1283534842 | L25: =1-_xlfn.BINOM.DIST(L14-1,$N14,$N$10,TRUE) -> 0.7085578883 | M25: =1-_xlfn.BINOM.DIST(M14-1,$N14,$O$10,TRUE) -> 0.8811874083 | N25: =1-_xlfn.BINOM.DIST(L14+M14-1,N14,$N$10+$O$10,TRUE) -> 0.9329942063 | O25: =1-_xlfn.BINOM.DIST(K14+L14-1,N14,$M$10+$N$10,TRUE) -> 0.2212034841
A26: 1977 | B26: 8 | C26: 92 | D26: 0.2 | E26: 0 | J26: ='Event index'!$B$4 -> La Nina | K26: =1-_xlfn.BINOM.DIST(K15-1,$N15,$M$10,TRUE) -> 0.8030760658 | L26: =1-_xlfn.BINOM.DIST(L15-1,$N15,$N$10,TRUE) -> 0.2580716942 | M26: =1-_xlfn.BINOM.DIST(M15-1,$N15,$O$10,TRUE) -> 0.7215888791 | N26: =1-_xlfn.BINOM.DIST(L15+M15-1,N15,$N$10+$O$10,TRUE) -> 0.3869253826 | O26: =1-_xlfn.BINOM.DIST(K15+L15-1,N15,$M$10+$N$10,TRUE) -> 0.493404321
A27: 1978 | B27: 8 | C27: 426 | D27: -0.5 | E27: 0
A28: 1979 | B28: 8 | C28: 525 | D28: 0.4 | E28: 0
A29: 1980 | B29: 8 | C29: 269 | D29: 0.1 | E29: 0
A30: 1981 | B30: 8 | C30: 188 | D30: 0 | E30: 0
A31: 1982 | B31: 8 | C31: 346 | D31: 1.5 | E31: 1
A32: 1983 | B32: 8 | C32: 437 | D32: 0.9 | E32: 1
A33: 1984 | B33: 8 | C33: 311 | D33: -0.6 | E33: -1
A34: 1985 | B34: 8 | C34: 317 | D34: -0.5 | E34: -1
A35: 1986 | B35: 8 | C35: 171 | D35: 0.4 | E35: 0
A36: 1987 | B36: 8 | C36: 462 | D36: 1.5 | E36: 1
A37: 1988 | B37: 8 | C37: 169 | D37: -1.5 | E37: -1
A38: 1989 | B38: 8 | C38: 59 | D38: -0.2 | E38: 0
A39: 1990 | B39: 8 | C39: 227 | D39: 0.3 | E39: 0
A40: 1991 | B40: 8 | C40: 345 | D40: 0.9 | E40: 1
A41: 1992 | B41: 8 | C41: 182 | D41: 0.1 | E41: 0
A42: 1993 | B42: 8 | C42: 432 | D42: 0.4 | E42: 0
A43: 1994 | B43: 8 | C43: 246 | D43: 0.1 | E43: 0
A44: 1995 | B44: 8 | C44: 360 | D44: -0.5 | E44: -1
A45: 1996 | B45: 8 | C45: 361 | D45: -0.3 | E45: 0
A46: 1997 | B46: 8 | C46: 230 | D46: 2.7 | E46: 1
A47: 1998 | B47: 8 | C47: 552 | D47: -0.5 | E47: -1
A48: 1999 | B48: 8 | C48: 282 | D48: -0.9 | E48: -1
A49: 2000 | B49: 8 | C49: 359 | D49: -0.4 | E49: 0
A50: 2001 | B50: 8 | C50: 205 | D50: -0.2 | E50: 0
A51: 2002 | B51: 8 | C51: 272 | D51: 0.7 | E51: 1
A52: 2003 | B52: 8 | C52: 202 | D52: 0.1 | E52: 0
A53: 2004 | B53: 8 | C53: 191 | D53: 0.2 | E53: 0
A54: 2005 | B54: 8 | C54: 361 | D54: 0.1 | E54: 0
A55: 2006 | B55: 8 | C55: 167 | D55: 0.4 | E55: 0
A56: 2007 | B56: 8 | C56: 505 | D56: -1.1 | E56: -1
A57: 2008 | B57: 8 | C57: 319 | D57: 0.2 | E57: 0
A58: 2009 | B58: 8 | C58: 482 | D58: 0.8 | E58: 1
A59: 2010 | B59: 8 | C59: 340 | D59: -1.1 | E59: -1
A60: 2011 | B60: 8 | C60: 409 | D60: -0.4 | E60: 0
A61: 2012 | B61: 8 | C61: 282 | D61: 0.5 | E61: 0
A62: 2013 | B62: 8 | C62: 212 | D62: -0.5 | E62: 0
A63: 2014 | B63: 8 | C63: 391 | D63: 0.5 | E63: 1
A64: 2015 | B64: 8 | C64: 395 | E64: 1

Sheet Temp. (raw)
A1: Year | B1: Month | C1: Mean Temp. (raw) | D1: Index | E1: Event
A2: 1958 | B2: 8 | C2: 25.8 | D2: 0.2 | E2: 0 | G2: Start Year | H2: 1958 | J2: Options of tertile thresholds | M2: Cold | N2: Normal | O2: Warm | P2: S1-Value | Q2: S2-Value
A3: 1959 | B3: 8 | C3: 26.7 | D3: -0.1 | E3: 0 | G3: End Year | H3: 2014 | J3: =PERCENTILE(OFFSET($C$2,0,0,COUNTA($C:$C)-1,1), 1/3) -> 26.8 | K3: =PERCENTILE(OFFSET($C$2,0,0,COUNTA($C:$C)-1,1), 2/3) -> 27.56666667 | M3: =COUNTIF(OFFSET($C$2,0,0,$H$8,1),"<="&$J3) -> 21 | N3: =COUNTIF(OFFSET($C$2,0,0,$H$8,1),"<="&$K3)-M3 -> 17 | O3: =COUNTIF(OFFSET($C$2,0,0,$H$8,1),">"&$K3) -> 19 | P3: =(1/3-$M3/$H$9)^2+(1/3-$N3/$H$9)^2+(1/3-$O3/$H$9)^2 -> 0.002462296091 | Q3: =ABS($J$3-J3)+ABS($K$3-K3) -> 0
A4: 1960 | B4: 8 | C4: 26.4 | D4: 0 | E4: 0 | G4: Calendar Month | H4: 8 | J4: =J3-0.1 -> 26.7 | K4: =K3 -> 27.56666667 | M4: =COUNTIF(OFFSET($C$2,0,0,$H$8,1),"<="&$J4) -> 18 | N4: =COUNTIF(OFFSET($C$2,0,0,$H$8,1),"<="&$K4)-M4 -> 20 | O4: =COUNTIF(OFFSET($C$2,0,0,$H$8,1),">"&$K4) -> 19 | P4: =(1/3-$M4/$H$9)^2+(1/3-$N4/$H$9)^2+(1/3-$O4/$H$9)^2 -> 0.0006155740228 | Q4: =ABS($J$3-J4)+ABS($K$3-K4) -> 0.1
A5: 1961 | B5: 8 | C5: 26.8 | D5: -0.4 | E5: 0 | J5: =J3 -> 26.8 | K5: =K3-0.1 -> 27.46666667 | M5: =COUNTIF(OFFSET($C$2,0,0,$H$8,1),"<="&$J5) -> 21 | N5: =COUNTIF(OFFSET($C$2,0,0,$H$8,1),"<="&$K5)-M5 -> 14 | O5: =COUNTIF(OFFSET($C$2,0,0,$H$8,1),">"&$K5) -> 22 | P5: =(1/3-$M5/$H$9)^2+(1/3-$N5/$H$9)^2+(1/3-$O5/$H$9)^2 -> 0.01169590643 | Q5: =ABS($J$3-J5)+ABS($K$3-K5) -> 0.1
A6: 1962 | B6: 8 | C6: 28.1 | D6: -0.2 | E6: 0 | J6: =J3-0.1 -> 26.7 | K6: =K3-0.1 -> 27.46666667 | M6: =COUNTIF(OFFSET($C$2,0,0,$H$8,1),"<="&$J6) -> 18 | N6: =COUNTIF(OFFSET($C$2,0,0,$H$8,1),"<="&$K6)-M6 -> 17 | O6: =COUNTIF(OFFSET($C$2,0,0,$H$8,1),">"&$K6) -> 22 | P6: =(1/3-$M6/$H$9)^2+(1/3-$N6/$H$9)^2+(1/3-$O6/$H$9)^2 -> 0.004309018159 | Q6: =ABS($J$3-J6)+ABS($K$3-K6) -> 0.2
A7: 1963 | B7: 8 | C7: 26.6 | D7: 0.9 | E7: 1
A8: 1964 | B8: 8 | C8: 27.8 | D8: -0.8 | E8: -1 | G8: Total Year | H8: =H3-H2+1 -> 57
A9: 1965 | B9: 8 | C9: 26.7 | D9: 1.3 | E9: 1 | G9: Effective Year | H9: =COUNT(OFFSET($C$2,0,0,$H$8,1)) -> 57 | J9: Tertile thresholds | L9: Probability | M9: Cold | N9: Normal | O9: Warm
A10: 1966 | B10: 8 | C10: 26.9 | D10: -0.1 | E10: 0 | J10: 26.7 | K10: 27.56666667 | M10: =M3/SUM($M$3:$O$3) -> 0.3684210526 | N10: =N3/SUM($M$3:$O$3) -> 0.298245614 | O10: =O3/SUM($M$3:$O$3) -> 0.3333333333
A11: 1967 | B11: 8 | C11: 28 | D11: -0.4 | E11: 0 | G11: Sampling bias rate(%) | H11: =ABS($N$13-$N$15)/$N$14*100 -> 0
A12: 1968 | B12: 8 | C12: 26.6 | D12: 0.4 | E12: 0 | J12: Count | K12: Cold | L12: Normal | M12: Warm | N12: Sum.
A13: 1969 | B13: 8 | C13: 27.2 | D13: 0.7 | E13: 1 | J13: ='Event index'!$F$4 -> El Nino | K13: =COUNTIFS(OFFSET($C$2,0,0,$H$8,1),"<="&$J$10,OFFSET($E$2,0,0,$H$8,1),1) -> 6 | L13: =COUNTIFS(OFFSET($C$2,0,0,$H$8,1),">"&$J$10,OFFSET($C$2,0,0,$H$8,1),"<="&$K$10,OFFSET($E$2,0,0,$H$8,1),1) -> 5 | M13: =COUNTIFS(OFFSET($C$2,0,0,$H$8,1),">"&$K$10,OFFSET($E$2,0,0,$H$8,1),1) -> 2 | N13: =SUM(K13:M13) -> 13
A14: 1970 | B14: 8 | C14: 27.4 | D14: -1 | E14: -1 | J14: ='Event index'!$D$4 -> Neutral | K14: =COUNTIFS(OFFSET($C$2,0,0,$H$8,1),"<="&$J$10,OFFSET($E$2,0,0,$H$8,1),0) -> 11 | L14: =COUNTIFS(OFFSET($C$2,0,0,$H$8,1),">"&$J$10,OFFSET($C$2,0,0,$H$8,1),"<="&$K$10,OFFSET($E$2,0,0,$H$8,1),0) -> 11 | M14: =COUNTIFS(OFFSET($C$2,0,0,$H$8,1),">"&$K$10,OFFSET($E$2,0,0,$H$8,1),0) -> 9 | N14: =SUM(K14:M14) -> 31
A15: 1971 | B15: 8 | C15: 26.7 | D15: -0.6 | E15: -1 | J15: ='Event index'!$B$4 -> La Nina | K15: =COUNTIFS(OFFSET($C$2,0,0,$H$8,1),"<="&$J$10,OFFSET($E$2,0,0,COUNTA($E:$E)-1,1),-1) -> 1 | L15: =COUNTIFS(OFFSET($C$2,0,0,$H$8,1),">"&$J$10,OFFSET($C$2,0,0,$H$8,1),"<="&$K$10,OFFSET($E$2,0,0,$H$8,1),-1) -> 4 | M15: =COUNTIFS(OFFSET($C$2,0,0,$H$8,1),">"&$K$10,OFFSET($E$2,0,0,$H$8,1),-1) -> 8 | N15: =SUM(K15:M15) -> 13
A16: 1972 | B16: 8 | C16: 26.6 | D16: 1.8 | E16: 1
A17: 1973 | B17: 8 | C17: 28.5 | D17: -0.9 | E17: -1 | J17: Percentage | K17: Cold | L17: Normal | M17: Warm | N17: Sum.
A18: 1974 | B18: 8 | C18: 27.1 | D18: -0.1 | E18: 0 | J18: ='Event index'!$F$4 -> El Nino | K18: =INT(K13/$N13*100+0.5) -> 46 | L18: 38 | M18: 15 | N18: =SUM(K18:M18) -> 99
A19: 1975 | B19: 8 | C19: 27.3 | D19: -0.8 | E19: -1 | J19: ='Event index'!$D$4 -> Neutral | K19: 35 | L19: 35 | M19: 29 | N19: =SUM(K19:M19) -> 99
A20: 1976 | B20: 8 | C20: 25.1 | D20: 1.1 | E20: 1 | J20: ='Event index'!$B$4 -> La Nina | K20: 8 | L20: 31 | M20: 62 | N20: =SUM(K20:M20) -> 101
A21: 1977 | B21: 8 | C21: 25 | D21: 0.2 | E21: 0
A22: 1978 | B22: 8 | C22: 28.9 | D22: -0.5 | E22: 0 | J22: Binomial test: (p-value) | Q22: Correlation | R22: r | S22: t-value | T22: p-value
A23: 1979 | B23: 8 | C23: 27.4 | D23: 0.4 | E23: 0 | K23: Cold | L23: Normal | M23: Warm | N23: Not Cold | O23: Not Warm | R23: =CORREL(OFFSET($D$2,0,0,$H$8,1), OFFSET($C$2,0,0,$H$8,1)) -> -0.34831723 | S23: =R23*SQRT($H$9-2)/SQRT(1-R23*R23) -> -2.755764753 | T23: =TDIST(ABS(S23),$H$9-2,2) -> 0.007926405987
A24: 1980 | B24: 8 | C24: 23.4 | D24: 0.1 | E24: 0 | J24: ='Event index'!$F$4 -> El Nino | K24: =1-_xlfn.BINOM.DIST(K13-1,$N13,$M$10,TRUE) -> 0.3343933795 | L24: =1-_xlfn.BINOM.DIST(L13-1,$N13,$N$10,TRUE) -> 0.3404237946 | M24: =1-_xlfn.BINOM.DIST(M13-1,$N13,$O$10,TRUE) -> 0.9614632669 | N24: =1-_xlfn.BINOM.DIST(L13+M13-1,N13,$N$10+$O$10,TRUE) -> 0.8376260225 | O24: =1-_xlfn.BINOM.DIST(K13+L13-1,N13,$M$10+$N$10,TRUE) -> 0.1387322393
A25: 1981 | B25: 8 | C25: 26.2 | D25: 0 | E25: 0 | J25: ='Event index'!$D$4 -> Neutral | K25: =1-_xlfn.BINOM.DIST(K14-1,$N14,$M$10,TRUE) -> 0.6282899966 | L25: =1-_xlfn.BINOM.DIST(L14-1,$N14,$N$10,TRUE) -> 0.3044318217 | M25: =1-_xlfn.BINOM.DIST(M14-1,$N14,$O$10,TRUE) -> 0.7537286665 | N25: =1-_xlfn.BINOM.DIST(L14+M14-1,N14,$N$10+$O$10,TRUE) -> 0.5182928547 | O25: =1-_xlfn.BINOM.DIST(K14+L14-1,N14,$M$10+$N$10,TRUE) -> 0.3831680879
A26: 1982 | B26: 8 | C26: 27.1 | D26: 1.5 | E26: 1 | J26: ='Event index'!$B$4 -> La Nina | K26: =1-_xlfn.BINOM.DIST(K15-1,$N15,$M$10,TRUE) -> 0.9974557523 | L26: =1-_xlfn.BINOM.DIST(L15-1,$N15,$N$10,TRUE) -> 0.5739139239 | M26: =1-_xlfn.BINOM.DIST(M15-1,$N15,$O$10,TRUE) -> 0.03465483469 | N26: =1-_xlfn.BINOM.DIST(L15+M15-1,N15,$N$10+$O$10,TRUE) -> 0.02183812587 | O26: =1-_xlfn.BINOM.DIST(K15+L15-1,N15,$M$10+$N$10,TRUE) -> 0.9911768193
A27: 1983 | B27: 8 | C27: 27.5 | D27: 0.9 | E27: 1
A28: 1984 | B28: 8 | C28: 28.6 | D28: -0.6 | E28: -1
A29: 1985 | B29: 8 | C29: 27.9 | D29: -0.5 | E29: -1
A30: 1986 | B30: 8 | C30: 26.8 | D30: 0.4 | E30: 0
A31: 1987 | B31: 8 | C31: 27.3 | D31: 1.5 | E31: 1
A32: 1988 | B32: 8 | C32: 27 | D32: -1.5 | E32: -1
A33: 1989 | B33: 8 | C33: 27.1 | D33: -0.2 | E33: 0
A34: 1990 | B34: 8 | C34: 28.6 | D34: 0.3 | E34: 0
A35: 1991 | B35: 8 | C35: 25.5 | D35: 0.9 | E35: 1
A36: 1992 | B36: 8 | C36: 27 | D36: 0.1 | E36: 0
A37: 1993 | B37: 8 | C37: 24.8 | D37: 0.4 | E37: 0
A38: 1994 | B38: 8 | C38: 28.9 | D38: 0.1 | E38: 0
A39: 1995 | B39: 8 | C39: 29.4 | D39: -0.5 | E39: -1
A40: 1996 | B40: 8 | C40: 26 | D40: -0.3 | E40: 0
A41: 1997 | B41: 8 | C41: 27 | D41: 2.7 | E41: 1
A42: 1998 | B42: 8 | C42: 27.2 | D42: -0.5 | E42: -1
A43: 1999 | B43: 8 | C43: 28.5 | D43: -0.9 | E43: -1
A44: 2000 | B44: 8 | C44: 28.3 | D44: -0.4 | E44: 0
A45: 2001 | B45: 8 | C45: 26.4 | D45: -0.2 | E45: 0
A46: 2002 | B46: 8 | C46: 28 | D46: 0.7 | E46: 1
A47: 2003 | B47: 8 | C47: 26 | D47: 0.1 | E47: 0
A48: 2004 | B48: 8 | C48: 27.2 | D48: 0.2 | E48: 0
A49: 2005 | B49: 8 | C49: 28.1 | D49: 0.1 | E49: 0
A50: 2006 | B50: 8 | C50: 27.5 | D50: 0.4 | E50: 0
A51: 2007 | B51: 8 | C51: 29 | D51: -1.1 | E51: -1
A52: 2008 | B52: 8 | C52: 26.8 | D52: 0.2 | E52: 0
A53: 2009 | B53: 8 | C53: 26.6 | D53: 0.8 | E53: 1
A54: 2010 | B54: 8 | C54: 29.6 | D54: -1.1 | E54: -1
A55: 2011 | B55: 8 | C55: 27.5 | D55: -0.4 | E55: 0
A56: 2012 | B56: 8 | C56: 29.1 | D56: 0.5 | E56: 0
A57: 2013 | B57: 8 | C57: 29.2 | D57: -0.5 | E57: 0
A58: 2014 | B58: 8 | C58: 27.7 | D58: 0.5 | E58: 1

Sheet Temp. (detrend)
A1: Year | B1: Month | C1: Mean Temp. (detred) | D1: Index | E1: Event
A2: 1958 | B2: 8 | C2: 0.380468823 | D2: 0.2 | E2: 0 | G2: Start Year | H2: 1958 | J2: Options of tertile thresholds | M2: Cold | N2: Normal | O2: Warm | P2: S1-Value | Q2: S2-Value
A3: 1959 | B3: 8 | C3: -0.04118070487 | D3: -0.1 | E3: 0 | G3: End Year | H3: 2014 | J3: =PERCENTILE(OFFSET($C$2,0,0,$H$8,1), 1/3) -> -0.09444688542 | K3: =PERCENTILE(OFFSET($C$2,0,0,$H$8,1), 2/3) -> 0.1564128572 | M3: =COUNTIF(OFFSET($C$2,0,0,$H$8,1),"<="&$J3) -> 19 | N3: =COUNTIF(OFFSET($C$2,0,0,$H$8,1),"<="&$K3)-M3 -> 18 | O3: =COUNTIF(OFFSET($C$2,0,0,$H$8,1),">"&$K3) -> 19 | P3: =(1/3-$M3/$H$9)^2+(1/3-$N3/$H$9)^2+(1/3-$O3/$H$9)^2 -> 0.000212585034 | Q3: =ABS($J$3-J3)+ABS($K$3-K3) -> 0
A4: 1960 | B4: 8 | C4: 0.6371697672 | D4: 0 | E4: 0 | G4: Calendar Month | H4: 8 | J4: =J3-0.1 -> -0.1944468854 | K4: =K3 -> 0.1564128572 | M4: =COUNTIF(OFFSET($C$2,0,0,$H$8,1),"<="&$J4) -> 13 | N4: =COUNTIF(OFFSET($C$2,0,0,$H$8,1),"<="&$K4)-M4 -> 24 | O4: =COUNTIF(OFFSET($C$2,0,0,$H$8,1),">"&$K4) -> 19 | P4: =(1/3-$M4/$H$9)^2+(1/3-$N4/$H$9)^2+(1/3-$O4/$H$9)^2 -> 0.0193452381 | Q4: =ABS($J$3-J4)+ABS($K$3-K4) -> 0.1
A5: 1961 | B5: 8 | C5: 0.1155202393 | D5: -0.4 | E5: 0 | J5: =J3 -> -0.09444688542 | K5: =K3-0.1 -> 0.05641285719 | M5: =COUNTIF(OFFSET($C$2,0,0,$H$8,1),"<="&$J5) -> 19 | N5: =COUNTIF(OFFSET($C$2,0,0,$H$8,1),"<="&$K5)-M5 -> 7 | O5: =COUNTIF(OFFSET($C$2,0,0,$H$8,1),">"&$K5) -> 30 | P5: =(1/3-$M5/$H$9)^2+(1/3-$N5/$H$9)^2+(1/3-$O5/$H$9)^2 -> 0.0843962585 | Q5: =ABS($J$3-J5)+ABS($K$3-K5) -> 0.1
A6: 1962 | B6: 8 | C6: -0.006129288586 | D6: -0.2 | E6: 0 | J6: =J3-0.1 -> -0.1944468854 | K6: =K3-0.1 -> 0.05641285719 | M6: =COUNTIF(OFFSET($C$2,0,0,$H$8,1),"<="&$J6) -> 13 | N6: =COUNTIF(OFFSET($C$2,0,0,$H$8,1),"<="&$K6)-M6 -> 13 | O6: =COUNTIF(OFFSET($C$2,0,0,$H$8,1),">"&$K6) -> 30 | P6: =(1/3-$M6/$H$9)^2+(1/3-$N6/$H$9)^2+(1/3-$O6/$H$9)^2 -> 0.06143707483 | Q6: =ABS($J$3-J6)+ABS($K$3-K6) -> 0.2
A7: 1963 | B7: 8 | C7: 0.3722211835 | D7: 0.9 | E7: 1
A8: 1964 | B8: 8 | C8: 0.2505716556 | D8: -0.8 | E8: -1 | G8: Total Year | H8: =H3-H2+1 -> 57
A9: 1965 | B9: 8 | C9: -0.6710778723 | D9: 1.3 | E9: 1 | G9: Effective Year | H9: =COUNT(OFFSET($C$2,0,0,$H$8,1)) -> 56 | J9: Tertile thresholds | L9: Probability | M9: Cold | N9: Normal | O9: Warm
A10: 1966 | B10: 8 | C10: 0.1072725998 | D10: -0.1 | E10: 0 | J10: -0.09444688542 | K10: 0.1564128572 | M10: =M3/SUM($M$3:$O$3) -> 0.3392857143 | N10: =N3/SUM($M$3:$O$3) -> 0.3214285714 | O10: =O3/SUM($M$3:$O$3) -> 0.3392857143
A11: 1967 | B11: 8 | C11: -0.01437692811 | D11: -0.4 | E11: 0 | G11: Sampling bias rate(%) | H11: =ABS($N$13-$N$15)/$N$14*100 -> 0
A12: 1968 | B12: 8 | C12: 0.163973544 | D12: 0.4 | E12: 0 | J12: Count | K12: Cold | L12: Normal | M12: Warm | N12: Sum.
A13: 1969 | B13: 8 | C13: -0.7576759839 | D13: 0.7 | E13: 1 | J13: ='Event index'!$F$4 -> El Nino | K13: =COUNTIFS(OFFSET($C$2,0,0,$H$8,1),"<="&$J$10,OFFSET($E$2,0,0,$H$8,1),1) -> 8 | L13: =COUNTIFS(OFFSET($C$2,0,0,$H$8,1),">"&$J$10,OFFSET($C$2,0,0,$H$8,1),"<="&$K$10,OFFSET($E$2,0,0,$H$8,1),1) -> 2 | M13: =COUNTIFS(OFFSET($C$2,0,0,$H$8,1),">"&$K$10,OFFSET($E$2,0,0,$H$8,1),1) -> 3 | N13: =SUM(K13:M13) -> 13
A14: 1970 | B14: 8 | C14: -0.07932551183 | D14: -1 | E14: -1 | J14: ='Event index'!$D$4 -> Neutral | K14: =COUNTIFS(OFFSET($C$2,0,0,$H$8,1),"<="&$J$10,OFFSET($E$2,0,0,$H$8,1),0) -> 6 | L14: =COUNTIFS(OFFSET($C$2,0,0,$H$8,1),">"&$J$10,OFFSET($C$2,0,0,$H$8,1),"<="&$K$10,OFFSET($E$2,0,0,$H$8,1),0) -> 13 | M14: =COUNTIFS(OFFSET($C$2,0,0,$H$8,1),">"&$K$10,OFFSET($E$2,0,0,$H$8,1),0) -> 11 | N14: =SUM(K14:M14) -> 30
A15: 1971 | B15: 8 | C15: -1.60097504 | D15: -0.6 | E15: -1 | J15: ='Event index'!$B$4 -> La Nina | K15: =COUNTIFS(OFFSET($C$2,0,0,$H$8,1),"<="&$J$10,OFFSET($E$2,0,0,$H$8,1),-1) -> 5 | L15: =COUNTIFS(OFFSET($C$2,0,0,$H$8,1),">"&$J$10,OFFSET($C$2,0,0,$H$8,1),"<="&$K$10,OFFSET($E$2,0,0,$H$8,1),-1) -> 3 | M15: =COUNTIFS(OFFSET($C$2,0,0,$H$8,1),">"&$K$10,OFFSET($E$2,0,0,$H$8,1),-1) -> 5 | N15: =SUM(K15:M15) -> 13
A16: 1972 | B16: 8 | C16: -0.8226245676 | D16: 1.8 | E16: 1
A17: 1973 | B17: 8 | C17: -0.1442740955 | D17: -0.9 | E17: -1 | G17: Linear Regression | J17: Percentage | K17: Cold | L17: Normal | M17: Warm | N17: Sum.
A18: 1974 | B18: 8 | D18: -0.1 | E18: 0 | G18: a | H18: 0.02164952791 | J18: ='Event index'!$F$4 -> El Nino | K18: =INT(K13/$N13*100+0.5) -> 62 | L18: 15 | M18: 23 | N18: =SUM(K18:M18) -> 100
A19: 1975 | B19: 8 | C19: -0.1875731514 | D19: -0.8 | E19: -1 | G19: b | H19: -14.07024446 | J19: ='Event index'!$D$4 -> Neutral | K19: 20 | L19: 43 | M19: 37 | N19: =SUM(K19:M19) -> 100
A20: 1976 | B20: 8 | C20: -0.8092226793 | D20: 1.1 | E20: 1 | G20: rsq | H20: 0.3814190641 | J20: ='Event index'!$B$4 -> La Nina | K20: 38 | L20: 23 | M20: 38 | N20: =SUM(K20:M20) -> 99
A21: 1977 | B21: 8 | C21: 0.2691277928 | D21: 0.2 | E21: 0
A22: 1978 | B22: 8 | C22: 0.3474782649 | D22: -0.5 | E22: 0 | J22: Binomial test: (p-value) | Q22: Correlation | R22: r | S22: t-value | T22: p-value
A23: 1979 | B23: 8 | C23: 0.225828737 | D23: 0.4 | E23: 0 | K23: Cold | L23: Normal | M23: Warm | N23: Not Cold | O23: Not Warm | R23: =CORREL(OFFSET($D$2,0,0,$H$8,1), OFFSET($C$2,0,0,$H$8,1)) -> -0.1234260237 | S23: =R23*SQRT($H$9-2)/SQRT(1-R23*R23) -> -0.9139808396 | T23: =TDIST(ABS(S23),$H$9-2,2) -> 0.3647899717
A24: 1980 | B24: 8 | C24: 0.1041792091 | D24: 0.1 | E24: 0 | J24: ='Event index'!$F$4 -> El Nino | K24: =1-_xlfn.BINOM.DIST(K13-1,$N13,$M$10,TRUE) -> 0.03849568565 | L24: =1-_xlfn.BINOM.DIST(L13-1,$N13,$N$10,TRUE) -> 0.9537056797 | M24: =1-_xlfn.BINOM.DIST(M13-1,$N13,$O$10,TRUE) -> 0.8708471898 | N24: =1-_xlfn.BINOM.DIST(L13+M13-1,N13,$N$10+$O$10,TRUE) -> 0.9899601683 | O24: =1-_xlfn.BINOM.DIST(K13+L13-1,N13,$M$10+$N$10,TRUE) -> 0.3062451294
A25: 1981 | B25: 8 | C25: 0.5825296812 | D25: 0 | E25: 0 | J25: ='Event index'!$D$4 -> Neutral | K25: =1-_xlfn.BINOM.DIST(K14-1,$N14,$M$10,TRUE) -> 0.969416189 | L25: =1-_xlfn.BINOM.DIST(L14-1,$N14,$N$10,TRUE) -> 0.1328490425 | M25: =1-_xlfn.BINOM.DIST(M14-1,$N14,$O$10,TRUE) -> 0.442665448 | N25: =1-_xlfn.BINOM.DIST(L14+M14-1,N14,$N$10+$O$10,TRUE) -> 0.07396925852 | O25: =1-_xlfn.BINOM.DIST(K14+L14-1,N14,$M$10+$N$10,TRUE) -> 0.6998596319
A26: 1982 | B26: 8 | C26: -0.3391198467 | D26: 1.5 | E26: 1 | J26: ='Event index'!$B$4 -> La Nina | K26: =1-_xlfn.BINOM.DIST(K15-1,$N15,$M$10,TRUE) -> 0.4664066229 | L26: =1-_xlfn.BINOM.DIST(L15-1,$N15,$N$10,TRUE) -> 0.8405139166 | M26: =1-_xlfn.BINOM.DIST(M15-1,$N15,$O$10,TRUE) -> 0.4664066229 | N26: =1-_xlfn.BINOM.DIST(L15+M15-1,N15,$N$10+$O$10,TRUE) -> 0.7437368925 | O26: =1-_xlfn.BINOM.DIST(K15+L15-1,N15,$M$10+$N$10,TRUE) -> 0.7437368925
A27: 1983 | B27: 8 | C27: -0.1607693746 | D27: 0.9 | E27: 1
A28: 1984 | B28: 8 | C28: -0.1824189025 | D28: -0.6 | E28: -1
A29: 1985 | B29: 8 | C29: 0.2959315696 | D29: -0.5 | E29: -1
A30: 1986 | B30: 8 | C30: 0.8742820417 | D30: 0.4 | E30: 0
A31: 1987 | B31: 8 | C31: 0.2526325138 | D31: 1.5 | E31: 1
A32: 1988 | B32: 8 | C32: 0.4309829859 | D32: -1.5 | E32: -1
A33: 1989 | B33: 8 | C33: 0.909333458 | D33: -0.2 | E33: 0
A34: 1990 | B34: 8 | C34: 0.4876839301 | D34: 0.3 | E34: 0
A35: 1991 | B35: 8 | C35: 0.06603440217 | D35: 0.9 | E35: 1
A36: 1992 | B36: 8 | C36: 0.04438487426 | D36: 0.1 | E36: 0
A37: 1993 | B37: 8 | C37: -0.3772646536 | D37: 0.4 | E37: 0
A38: 1994 | B38: 8 | C38: 0.1010858185 | D38: 0.1 | E38: 0
A39: 1995 | B39: 8 | C39: 0.3794362905 | D39: -0.5 | E39: -1
A40: 1996 | B40: 8 | C40: -0.1422132374 | D40: -0.3 | E40: 0
A41: 1997 | B41: 8 | C41: 0.5361372347 | D41: 2.7 | E41: 1
A42: 1998 | B42: 8 | C42: 0.1144877068 | D42: -0.5 | E42: -1
A43: 1999 | B43: 8 | C43: -0.2071618211 | D43: -0.9 | E43: -1
A44: 2000 | B44: 8 | C44: -0.02881134898 | D44: -0.4 | E44: 0
A45: 2001 | B45: 8 | C45: -0.4504608769 | D45: -0.2 | E45: 0
A46: 2002 | B46: 8 | C46: -0.8721104048 | D46: 0.7 | E46: 1
A47: 2003 | B47: 8 | C47: 0.2062400673 | D47: 0.1 | E47: 0
A48: 2004 | B48: 8 | C48: 0.0845905394 | D48: 0.2 | E48: 0
A49: 2005 | B49: 8 | C49: 0.0629410115 | D49: 0.1 | E49: 0
A50: 2006 | B50: 8 | C50: 0.1412914836 | D50: 0.4 | E50: 0
A51: 2007 | B51: 8 | C51: 0.1196419557 | D51: -1.1 | E51: -1
A52: 2008 | B52: 8 | C52: -0.1020075722 | D52: 0.2 | E52: 0
A53: 2009 | B53: 8 | C53: -0.02365710012 | D53: 0.8 | E53: 1
A54: 2010 | B54: 8 | C54: 0.654693372 | D54: -1.1 | E54: -1
A55: 2011 | B55: 8 | C55: -0.6669561559 | D55: -0.4 | E55: 0
A56: 2012 | B56: 8 | C56: 0.1113943162 | D56: 0.5 | E56: 0
A57: 2013 | B57: 8 | C57: -0.4102552117 | D57: -0.5 | E57: 0
A58: 2014 | B58: 8 | C58: -0.3319047396 | D58: 0.5 | E58: 1

Sheet Work
K1: 1 | L1: 1-mon
K2: 2 | L2: 3-mon
K3: 3
K4: 4
K5: 5
K6: 6
K7: 7
K8: 8
K9: 9
K10: 10
K11: 11
K12: 12
